[Event "Titled Tuesday Blitz April 25 Early 2023"]
[White "Zhigalko, Sergei"]
[Black "Sahib Singh"]
[WhiteFideId "13502956"]
[BlackFideId "25618342"]
[WhiteElo "2626"]
[BlackElo "1934"]
[Result "1-0"]
[Round "06"]
[TimeControl "180+2"]
[Date "2023.04.25"]
[WhiteClock "0:00:35"]
[BlackClock "0:00:21"]

1. e4 {[%clk 0:03:00]}  c5 {[%clk 0:02:56]} 2. Nf3 {[%clk 0:03:00]}  e6 {[%clk 0:02:56]} 3. c3 {[%clk 0:03:01]}  Nc6 {[%clk 0:02:54]} 4. d4 {[%clk 0:03:01]}  cxd4 {[%clk 0:02:55]} 5. cxd4 {[%clk 0:03:02]}  d5 {[%clk 0:02:56]} 6. e5 {[%clk 0:03:01]}  Bd7 {[%clk 0:02:55]} 7. Nc3 {[%clk 0:03:01]}  Rc8 {[%clk 0:02:53]} 8. Bd3 {[%clk 0:02:53]}  a6 {[%clk 0:02:37]} 9. O-O {[%clk 0:02:52]}  b5 {[%clk 0:02:38]} 10. a4 {[%clk 0:02:45]}  b4 {[%clk 0:02:37]} 11. Ne2 {[%clk 0:02:45]}  a5 {[%clk 0:02:36]} 12. Be3 {[%clk 0:02:43]}  Nh6 {[%clk 0:02:25]} 13. Nf4 {[%clk 0:02:24]}  Be7 {[%clk 0:02:04]} 14. Nh5 {[%clk 0:02:19]}  Kf8 {[%clk 0:01:51]} 15. Bxh6 {[%clk 0:02:12]}  gxh6 {[%clk 0:01:51]} 16. Rc1 {[%clk 0:02:03]}  f6 {[%clk 0:01:43]} 17. Qd2 {[%clk 0:02:01]}  Kf7 {[%clk 0:01:36]} 18. Qxh6 {[%clk 0:01:19]}  Qf8 {[%clk 0:01:35]} 19. Qf4 {[%clk 0:01:15]}  f5 {[%clk 0:01:32]} 20. Bb5 {[%clk 0:01:09]}  Rg8 {[%clk 0:01:29]} 21. Bxc6 {[%clk 0:01:00]}  Bxc6 {[%clk 0:01:25]} 22. Nf6 {[%clk 0:01:00]}  Bxf6 {[%clk 0:01:01]} 23. exf6 {[%clk 0:01:00]}  Bxa4 {[%clk 0:00:59]} 24. Rxc8 {[%clk 0:00:49]}  Qxc8 {[%clk 0:00:58]} 25. Qh6 {[%clk 0:00:47]}  Bb5 {[%clk 0:00:22]} 26. Ne5+ {[%clk 0:00:46]}  Ke8 {[%clk 0:00:19]} 27. f7+ {[%clk 0:00:47]}  Ke7 {[%clk 0:00:20]} 28. fxg8=Q {[%clk 0:00:37]}  Qxg8 {[%clk 0:00:21]} 29. Rc1 {[%clk 0:00:35]} 1-0


[Site "https://www.chess.com"]

[Event "Titled Tuesday Blitz April 25 Early 2023"]
[White "Indjic, Aleksandar"]
[Black "Gontcharov, Vladislav"]
[WhiteFideId "911925"]
[BlackFideId "4123492"]
[WhiteElo "2614"]
[BlackElo "2420"]
[Result "1-0"]
[Round "06"]
[TimeControl "180+2"]
[Date "2023.04.25"]
[WhiteClock "0:01:01"]
[BlackClock "0:00:06"]

1. e4 {[%clk 0:03:00]}  e6 {[%clk 0:02:59]} 2. d4 {[%clk 0:02:59]}  d5 {[%clk 0:02:59]} 3. e5 {[%clk 0:03:00]}  c5 {[%clk 0:02:59]} 4. c3 {[%clk 0:03:01]}  Nc6 {[%clk 0:02:59]} 5. Nf3 {[%clk 0:03:01]}  cxd4 {[%clk 0:02:59]} 6. cxd4 {[%clk 0:02:59]}  Nge7 {[%clk 0:02:59]} 7. Na3 {[%clk 0:02:58]}  Nf5 {[%clk 0:02:59]} 8. Nc2 {[%clk 0:02:58]}  Nh4 {[%clk 0:02:58]} 9. Nd2 {[%clk 0:02:44]}  Nf5 {[%clk 0:02:43]} 10. Nf3 {[%clk 0:02:34]}  Nh4 {[%clk 0:02:42]} 11. Nxh4 {[%clk 0:02:33]}  Qxh4 {[%clk 0:02:42]} 12. Be2 {[%clk 0:02:30]}  Qd8 {[%clk 0:02:33]} 13. O-O {[%clk 0:02:29]}  Be7 {[%clk 0:02:31]} 14. Be3 {[%clk 0:02:28]}  O-O {[%clk 0:02:28]} 15. f4 {[%clk 0:02:28]}  f6 {[%clk 0:02:28]} 16. Bd3 {[%clk 0:02:28]}  Bd7 {[%clk 0:02:21]} 17. Qh5 {[%clk 0:02:26]}  f5 {[%clk 0:02:20]} 18. Qe2 {[%clk 0:02:23]}  Rc8 {[%clk 0:02:19]} 19. Kh1 {[%clk 0:02:19]}  a6 {[%clk 0:02:13]} 20. g4 {[%clk 0:02:19]}  Kh8 {[%clk 0:01:52]} 21. gxf5 {[%clk 0:02:19]}  exf5 {[%clk 0:01:52]} 22. Rf3 {[%clk 0:02:19]}  Nb4 {[%clk 0:01:40]} 23. Nxb4 {[%clk 0:02:18]}  Bxb4 {[%clk 0:01:39]} 24. Rg1 {[%clk 0:02:19]}  Qe7 {[%clk 0:01:29]} 25. Qg2 {[%clk 0:02:18]}  Bb5 {[%clk 0:01:26]} 26. Bb1 {[%clk 0:02:17]}  g6 {[%clk 0:01:18]} 27. h4 {[%clk 0:02:17]}  Rg8 {[%clk 0:01:06]} 28. Rh3 {[%clk 0:02:17]}  Qf7 {[%clk 0:00:59]} 29. Kh2 {[%clk 0:02:17]}  Ba4 {[%clk 0:00:58]} 30. Qe2 {[%clk 0:02:11]}  Bb5 {[%clk 0:00:56]} 31. Qf3 {[%clk 0:02:11]}  Ba4 {[%clk 0:00:46]} 32. Rg2 {[%clk 0:02:09]}  h5 {[%clk 0:00:39]} 33. Rhg3 {[%clk 0:02:03]}  Bd7 {[%clk 0:00:36]} 34. Bd3 {[%clk 0:01:57]}  Kh7 {[%clk 0:00:32]} 35. Rg1 {[%clk 0:01:50]}  Be7 {[%clk 0:00:31]} 36. Kh3 {[%clk 0:01:50]}  Be6 {[%clk 0:00:28]} 37. R3g2 {[%clk 0:01:50]}  Rc6 {[%clk 0:00:27]} 38. a4 {[%clk 0:01:46]}  Bd7 {[%clk 0:00:27]} 39. Qd1 {[%clk 0:01:46]}  Be6 {[%clk 0:00:26]} 40. Qb3 {[%clk 0:01:46]}  Bd8 {[%clk 0:00:24]} 41. Re2 {[%clk 0:01:42]}  Qe7 {[%clk 0:00:23]} 42. Bf2 {[%clk 0:01:42]}  Ba5 {[%clk 0:00:22]} 43. Rc2 {[%clk 0:01:40]}  Rgc8 {[%clk 0:00:21]} 44. Rxc6 {[%clk 0:01:40]}  Rxc6 {[%clk 0:00:21]} 45. Kg2 {[%clk 0:01:31]}  Rb6 {[%clk 0:00:21]} 46. Qc2 {[%clk 0:01:30]}  Rc6 {[%clk 0:00:21]} 47. Qd1 {[%clk 0:01:16]}  Qc7 {[%clk 0:00:20]} 48. Qb1 {[%clk 0:01:04]}  Qb6 {[%clk 0:00:19]} 49. Rc1 {[%clk 0:01:03]}  Qb4 {[%clk 0:00:18]} 50. Rxc6 {[%clk 0:01:02]}  bxc6 {[%clk 0:00:16]} 51. Qc2 {[%clk 0:01:03]}  c5 {[%clk 0:00:09]} 52. Qxc5 {[%clk 0:01:01]}  Qxc5 {[%clk 0:00:05]} 53. dxc5 {[%clk 0:01:01]}  Bc8 {[%clk 0:00:06]} 54. c6 {[%clk 0:01:00]}  Kg7 {[%clk 0:00:06]} 55. Bc5 {[%clk 0:00:59]}  Kf7 {[%clk 0:00:06]} 56. b4 {[%clk 0:00:59]}  Bc7 {[%clk 0:00:06]} 57. b5 {[%clk 0:01:00]}  axb5 {[%clk 0:00:06]} 58. axb5 {[%clk 0:01:01]}  Bd8 {[%clk 0:00:06]} 59. b6 {[%clk 0:01:01]} 1-0


[Site "https://www.chess.com"]

[Event "Titled Tuesday Blitz April 25 Early 2023"]
[White "Elgersma, Onno"]
[Black "Donchenko, Alexander"]
[WhiteFideId "1053531"]
[BlackFideId "24603295"]
[WhiteElo "2252"]
[BlackElo "2542"]
[Result "0-1"]
[Round "06"]
[TimeControl "180+2"]
[Date "2023.04.25"]
[WhiteClock "0:00:12"]
[BlackClock "0:00:11"]

1. Nf3 {[%clk 0:02:58]}  Nf6 {[%clk 0:02:59]} 2. e3 {[%clk 0:02:57]}  c5 {[%clk 0:02:56]} 3. b3 {[%clk 0:02:54]}  g6 {[%clk 0:02:56]} 4. Bb2 {[%clk 0:02:55]}  Bg7 {[%clk 0:02:57]} 5. d4 {[%clk 0:02:51]}  cxd4 {[%clk 0:02:56]} 6. Nxd4 {[%clk 0:02:48]}  O-O {[%clk 0:02:55]} 7. c4 {[%clk 0:02:48]}  b6 {[%clk 0:02:54]} 8. Be2 {[%clk 0:02:47]}  Bb7 {[%clk 0:02:54]} 9. O-O {[%clk 0:02:47]}  Nc6 {[%clk 0:02:54]} 10. Nd2 {[%clk 0:02:42]}  Rc8 {[%clk 0:02:54]} 11. N2f3 {[%clk 0:02:39]}  Qc7 {[%clk 0:02:52]} 12. Rc1 {[%clk 0:02:37]}  Rfd8 {[%clk 0:02:51]} 13. Qc2 {[%clk 0:02:33]}  Qb8 {[%clk 0:02:51]} 14. Rfd1 {[%clk 0:02:32]}  Nb4 {[%clk 0:02:48]} 15. Qd2 {[%clk 0:02:28]}  Na6 {[%clk 0:02:37]} 16. b4 {[%clk 0:02:18]}  Ne4 {[%clk 0:02:33]} 17. Qe1 {[%clk 0:02:18]}  Nc7 {[%clk 0:02:20]} 18. a3 {[%clk 0:02:17]}  Qa8 {[%clk 0:02:13]} 19. Bf1 {[%clk 0:02:14]}  Ne8 {[%clk 0:02:06]} 20. Ba1 {[%clk 0:02:03]}  N8f6 {[%clk 0:02:06]} 21. h3 {[%clk 0:01:57]}  d6 {[%clk 0:02:03]} 22. Nb5 {[%clk 0:01:50]}  a6 {[%clk 0:01:59]} 23. Nbd4 {[%clk 0:01:50]}  Nd7 {[%clk 0:01:45]} 24. Be2 {[%clk 0:01:42]}  Ne5 {[%clk 0:01:38]} 25. Nxe5 {[%clk 0:01:39]}  Bxe5 {[%clk 0:01:39]} 26. Nf3 {[%clk 0:01:36]}  Bxa1 {[%clk 0:01:37]} 27. Rxa1 {[%clk 0:01:37]}  d5 {[%clk 0:01:30]} 28. Rac1 {[%clk 0:01:29]}  dxc4 {[%clk 0:01:29]} 29. Rxd8+ {[%clk 0:01:27]}  Rxd8 {[%clk 0:01:30]} 30. Bxc4 {[%clk 0:01:27]}  Nd6 {[%clk 0:01:27]} 31. Be2 {[%clk 0:01:27]}  Bxf3 {[%clk 0:01:22]} 32. Bxf3 {[%clk 0:01:26]}  Qb8 {[%clk 0:01:22]} 33. Qe2 {[%clk 0:01:26]}  Rc8 {[%clk 0:01:22]} 34. Rd1 {[%clk 0:01:11]}  Qa7 {[%clk 0:01:20]} 35. e4 {[%clk 0:01:09]}  a5 {[%clk 0:01:16]} 36. e5 {[%clk 0:01:08]}  Nf5 {[%clk 0:01:14]} 37. e6 {[%clk 0:01:08]}  f6 {[%clk 0:01:10]} 38. Rd7 {[%clk 0:01:06]}  Qb8 {[%clk 0:01:07]} 39. g3 {[%clk 0:00:49]}  axb4 {[%clk 0:01:05]} 40. axb4 {[%clk 0:00:48]}  Rc3 {[%clk 0:00:45]} 41. Be4 {[%clk 0:00:37]}  Nxg3 {[%clk 0:00:31]} 42. fxg3 {[%clk 0:00:26]}  Qxg3+ {[%clk 0:00:32]} 43. Bg2 {[%clk 0:00:27]}  Rc1+ {[%clk 0:00:29]} 44. Rd1 {[%clk 0:00:27]}  Qe5 {[%clk 0:00:24]} 45. Qd2 {[%clk 0:00:16]}  Rxd1+ {[%clk 0:00:13]} 46. Qxd1 {[%clk 0:00:17]}  Kg7 {[%clk 0:00:13]} 47. Qd7 {[%clk 0:00:16]}  Qe3+ {[%clk 0:00:11]} 48. Kf1 {[%clk 0:00:15]}  Qf4+ {[%clk 0:00:10]} 49. Ke2 {[%clk 0:00:13]}  Qxb4 {[%clk 0:00:11]} 50. Bd5 {[%clk 0:00:09]}  h5 {[%clk 0:00:09]} 51. Qe8 {[%clk 0:00:06]}  Kh6 {[%clk 0:00:07]} 52. Qc6 {[%clk 0:00:05]}  b5 {[%clk 0:00:06]} 53. Qc1+ {[%clk 0:00:05]}  Kg7 {[%clk 0:00:06]} 54. Qc6 {[%clk 0:00:05]}  Qb2+ {[%clk 0:00:05]} 55. Ke3 {[%clk 0:00:06]}  Qe5+ {[%clk 0:00:05]} 56. Kd3 {[%clk 0:00:06]}  b4 {[%clk 0:00:06]} 57. Qd7 {[%clk 0:00:06]}  Qc3+ {[%clk 0:00:06]} 58. Ke2 {[%clk 0:00:06]}  Qc5 {[%clk 0:00:06]} 59. Kd3 {[%clk 0:00:05]}  Kh6 {[%clk 0:00:06]} 60. Qc6 {[%clk 0:00:05]}  Qf2 {[%clk 0:00:05]} 61. Qc1+ {[%clk 0:00:05]}  Kg7 {[%clk 0:00:04]} 62. Qe3 {[%clk 0:00:05]}  Qf5+ {[%clk 0:00:04]} 63. Be4 {[%clk 0:00:05]}  Qb5+ {[%clk 0:00:04]} 64. Kd2 {[%clk 0:00:05]}  b3 {[%clk 0:00:04]} 65. Qg3 {[%clk 0:00:04]}  g5 {[%clk 0:00:03]} 66. Qf3 {[%clk 0:00:03]}  b2 {[%clk 0:00:03]} 67. Qxh5 {[%clk 0:00:03]}  Qb4+ {[%clk 0:00:02]} 68. Ke3 {[%clk 0:00:02]}  Qxe4+ {[%clk 0:00:03]} 69. Kxe4 {[%clk 0:00:03]}  b1=Q+ {[%clk 0:00:04]} 70. Kd5 {[%clk 0:00:04]}  Qf5+ {[%clk 0:00:04]} 71. Kd4 {[%clk 0:00:05]}  Qxe6 {[%clk 0:00:04]} 72. h4 {[%clk 0:00:05]}  Qe5+ {[%clk 0:00:04]} 73. Kd3 {[%clk 0:00:05]}  Qg3+ {[%clk 0:00:04]} 74. Kd2 {[%clk 0:00:04]}  Qxh4 {[%clk 0:00:05]} 75. Qe2 {[%clk 0:00:05]}  Qd4+ {[%clk 0:00:05]} 76. Kc2 {[%clk 0:00:05]}  g4 {[%clk 0:00:05]} 77. Qxe7+ {[%clk 0:00:05]}  Kg6 {[%clk 0:00:06]} 78. Qe2 {[%clk 0:00:06]}  Qf4 {[%clk 0:00:05]} 79. Qd3+ {[%clk 0:00:06]}  Qf5 {[%clk 0:00:06]} 80. Kd2 {[%clk 0:00:06]}  Qxd3+ {[%clk 0:00:06]} 81. Kxd3 {[%clk 0:00:07]}  Kf5 {[%clk 0:00:07]} 82. Ke2 {[%clk 0:00:08]}  Kf4 {[%clk 0:00:07]} 83. Kf1 {[%clk 0:00:09]}  g3 {[%clk 0:00:08]} 84. Kg1 {[%clk 0:00:10]}  Kf3 {[%clk 0:00:08]} 85. Kf1 {[%clk 0:00:10]}  Kg4 {[%clk 0:00:08]} 86. Kg1 {[%clk 0:00:11]}  Kh3 {[%clk 0:00:08]} 87. Kh1 {[%clk 0:00:11]}  f5 {[%clk 0:00:09]} 88. Kg1 {[%clk 0:00:12]}  g2 {[%clk 0:00:10]} 89. Kf2 {[%clk 0:00:12]}  Kh2 {[%clk 0:00:11]} 0-1


[Site "https://www.chess.com"]

[Event "Titled Tuesday Blitz April 25 Early 2023"]
[White "Fressinet, Laurent"]
[Black "Bosnjak, Petar"]
[WhiteFideId "608742"]
[BlackFideId "14532581"]
[WhiteElo "2633"]
[BlackElo "2227"]
[Result "1/2-1/2"]
[Round "06"]
[TimeControl "180+2"]
[Date "2023.04.25"]
[WhiteClock "0:00:09"]
[BlackClock "0:00:57"]

1. d4 {[%clk 0:03:00]}  d5 {[%clk 0:02:57]} 2. Nf3 {[%clk 0:03:00]}  Nf6 {[%clk 0:02:57]} 3. Bg5 {[%clk 0:03:01]}  c5 {[%clk 0:02:56]} 4. e3 {[%clk 0:02:56]}  Nc6 {[%clk 0:02:56]} 5. Nbd2 {[%clk 0:02:47]}  Bg4 {[%clk 0:02:50]} 6. c3 {[%clk 0:02:42]}  cxd4 {[%clk 0:02:44]} 7. exd4 {[%clk 0:02:39]}  e6 {[%clk 0:02:42]} 8. Qb3 {[%clk 0:02:31]}  Qc7 {[%clk 0:02:38]} 9. Bxf6 {[%clk 0:02:18]}  gxf6 {[%clk 0:02:38]} 10. Be2 {[%clk 0:02:12]}  Bg7 {[%clk 0:02:35]} 11. Nf1 {[%clk 0:02:11]}  Bh5 {[%clk 0:02:34]} 12. Ng3 {[%clk 0:02:02]}  Bg6 {[%clk 0:02:33]} 13. Nh4 {[%clk 0:01:57]}  a6 {[%clk 0:02:19]} 14. O-O {[%clk 0:01:56]}  O-O {[%clk 0:02:18]} 15. f4 {[%clk 0:01:46]}  f5 {[%clk 0:02:17]} 16. Qd1 {[%clk 0:01:45]}  Bf6 {[%clk 0:02:16]} 17. Nxg6 {[%clk 0:01:38]}  hxg6 {[%clk 0:02:16]} 18. Rf3 {[%clk 0:01:38]}  Kg7 {[%clk 0:02:14]} 19. Nf1 {[%clk 0:01:37]}  Rh8 {[%clk 0:02:13]} 20. g3 {[%clk 0:01:32]}  Na5 {[%clk 0:02:10]} 21. Ne3 {[%clk 0:01:31]}  b5 {[%clk 0:02:07]} 22. h4 {[%clk 0:01:22]}  Nc4 {[%clk 0:02:06]} 23. Bxc4 {[%clk 0:01:21]}  bxc4 {[%clk 0:02:04]} 24. Rf2 {[%clk 0:01:17]}  a5 {[%clk 0:02:03]} 25. Rh2 {[%clk 0:01:09]}  Rab8 {[%clk 0:01:57]} 26. Qf3 {[%clk 0:01:05]}  a4 {[%clk 0:01:54]} 27. a3 {[%clk 0:01:05]}  Rbg8 {[%clk 0:01:36]} 28. Rf1 {[%clk 0:01:02]}  Kf8 {[%clk 0:01:34]} 29. Qd1 {[%clk 0:01:02]}  Qc6 {[%clk 0:01:33]} 30. Rff2 {[%clk 0:00:58]}  Be7 {[%clk 0:01:33]} 31. Kf1 {[%clk 0:00:56]}  Ke8 {[%clk 0:01:33]} 32. Ke2 {[%clk 0:00:56]}  Kd7 {[%clk 0:01:32]} 33. Kd2 {[%clk 0:00:56]}  Qb5 {[%clk 0:01:31]} 34. Kc1 {[%clk 0:00:54]}  Bf6 {[%clk 0:01:28]} 35. Qc2 {[%clk 0:00:39]}  Rb8 {[%clk 0:01:26]} 36. Rf1 {[%clk 0:00:35]}  Rbg8 {[%clk 0:01:23]} 37. Rfh1 {[%clk 0:00:33]}  Rh5 {[%clk 0:01:16]} 38. g4 {[%clk 0:00:30]}  fxg4 {[%clk 0:01:16]} 39. Nxg4 {[%clk 0:00:31]}  Bg7 {[%clk 0:01:10]} 40. Ne5+ {[%clk 0:00:30]}  Ke8 {[%clk 0:01:07]} 41. Rg2 {[%clk 0:00:19]}  Bxe5 {[%clk 0:01:01]} 42. fxe5 {[%clk 0:00:19]}  Rgh8 {[%clk 0:01:02]} 43. Qf2 {[%clk 0:00:18]}  Qd7 {[%clk 0:01:00]} 44. Rg4 {[%clk 0:00:12]}  Qe7 {[%clk 0:01:00]} 45. Qc2 {[%clk 0:00:08]}  Qd7 {[%clk 0:00:59]} 46. Qf2 {[%clk 0:00:08]}  Qe7 {[%clk 0:00:56]} 47. Qc2 {[%clk 0:00:08]}  Qd7 {[%clk 0:00:57]} 48. Qf2 {[%clk 0:00:09]} 1/2-1/2


[Site "https://www.chess.com"]

[Event "Titled Tuesday Blitz April 25 Early 2023"]
[White "Svane, Frederik"]
[Black "Liyanage, Ranindu Dilshan"]
[WhiteFideId "12923044"]
[BlackFideId "9915834"]
[WhiteElo "2502"]
[BlackElo "2199"]
[Result "1-0"]
[Round "06"]
[TimeControl "180+2"]
[Date "2023.04.25"]
[WhiteClock "0:01:19"]
[BlackClock "0:00:42"]

1. c4 {[%clk 0:03:00]}  e6 {[%clk 0:03:00]} 2. Nc3 {[%clk 0:02:58]}  d5 {[%clk 0:03:00]} 3. cxd5 {[%clk 0:02:59]}  exd5 {[%clk 0:03:00]} 4. d4 {[%clk 0:03:00]}  Bb4 {[%clk 0:03:01]} 5. Nf3 {[%clk 0:02:58]}  Nf6 {[%clk 0:03:00]} 6. Bf4 {[%clk 0:02:55]}  Ne4 {[%clk 0:02:55]} 7. Rc1 {[%clk 0:02:50]}  g5 {[%clk 0:02:51]} 8. Bd2 {[%clk 0:02:27]}  Bxc3 {[%clk 0:02:44]} 9. Bxc3 {[%clk 0:02:26]}  Qf6 {[%clk 0:02:18]} 10. h3 {[%clk 0:02:26]}  h5 {[%clk 0:02:11]} 11. e3 {[%clk 0:02:25]}  Rg8 {[%clk 0:02:09]} 12. Bd3 {[%clk 0:02:15]}  g4 {[%clk 0:02:03]} 13. hxg4 {[%clk 0:02:08]}  Bxg4 {[%clk 0:02:02]} 14. Qb3 {[%clk 0:01:46]}  Bxf3 {[%clk 0:01:43]} 15. gxf3 {[%clk 0:01:46]}  Qxf3 {[%clk 0:01:38]} 16. Rf1 {[%clk 0:01:45]}  Nxf2 {[%clk 0:00:43]} 17. Rxf2 {[%clk 0:01:40]}  Rg1+ {[%clk 0:00:43]} 18. Bf1 {[%clk 0:01:39]}  Rxf1+ {[%clk 0:00:43]} 19. Kxf1 {[%clk 0:01:19]}  Qh1+ {[%clk 0:00:41]} 20. Ke2 {[%clk 0:01:19]}  Qxc1 {[%clk 0:00:42]} 21. Rf1 {[%clk 0:01:19]} 1-0


[Site "https://www.chess.com"]

[Event "Titled Tuesday Blitz April 25 Early 2023"]
[White "Borgaonkar Akshay"]
[Black "Movahed, Sina"]
[WhiteFideId "25639110"]
[BlackFideId "42520835"]
[WhiteElo "2063"]
[BlackElo "2225"]
[Result "0-1"]
[Round "06"]
[TimeControl "180+2"]
[Date "2023.04.25"]
[WhiteClock "0:00:02"]
[BlackClock "0:00:06"]

1. d4 {[%clk 0:03:00]}  Nf6 {[%clk 0:03:00]} 2. Nc3 {[%clk 0:03:00]}  d5 {[%clk 0:02:59]} 3. Bf4 {[%clk 0:03:00]}  g6 {[%clk 0:02:58]} 4. e3 {[%clk 0:02:59]}  Bg7 {[%clk 0:02:58]} 5. h4 {[%clk 0:03:00]}  c6 {[%clk 0:02:54]} 6. Nf3 {[%clk 0:02:59]}  Bg4 {[%clk 0:02:53]} 7. Be2 {[%clk 0:02:59]}  Nbd7 {[%clk 0:02:51]} 8. Ne5 {[%clk 0:02:58]}  Bxe2 {[%clk 0:02:46]} 9. Qxe2 {[%clk 0:02:59]}  h5 {[%clk 0:02:42]} 10. O-O-O {[%clk 0:02:57]}  Rc8 {[%clk 0:02:24]} 11. f3 {[%clk 0:02:56]}  b5 {[%clk 0:02:23]} 12. e4 {[%clk 0:02:55]}  b4 {[%clk 0:02:23]} 13. Na4 {[%clk 0:02:45]}  Qa5 {[%clk 0:02:20]} 14. b3 {[%clk 0:02:43]}  Nb6 {[%clk 0:02:18]} 15. Nxb6 {[%clk 0:01:59]}  axb6 {[%clk 0:02:19]} 16. Kb1 {[%clk 0:01:59]}  dxe4 {[%clk 0:02:06]} 17. fxe4 {[%clk 0:01:56]}  Ra8 {[%clk 0:02:06]} 18. a4 {[%clk 0:01:52]}  bxa3 {[%clk 0:02:05]} 19. Ka2 {[%clk 0:01:52]}  Qc3 {[%clk 0:01:47]} 20. Nc4 {[%clk 0:01:43]}  O-O {[%clk 0:01:22]} 21. Rh3 {[%clk 0:00:33]}  Qb4 {[%clk 0:01:16]} 22. Ne5 {[%clk 0:00:33]}  Rfc8 {[%clk 0:01:11]} 23. c4 {[%clk 0:00:31]}  Qa5 {[%clk 0:01:07]} 24. Bd2 {[%clk 0:00:26]}  Qa6 {[%clk 0:01:07]} 25. g4 {[%clk 0:00:24]}  b5 {[%clk 0:00:53]} 26. gxh5 {[%clk 0:00:22]}  Nxh5 {[%clk 0:00:54]} 27. c5 {[%clk 0:00:16]}  Rd8 {[%clk 0:00:50]} 28. Qe3 {[%clk 0:00:08]}  Qc8 {[%clk 0:00:45]} 29. Rf3 {[%clk 0:00:06]}  Bxe5 {[%clk 0:00:45]} 30. dxe5 {[%clk 0:00:07]}  Qe6 {[%clk 0:00:45]} 31. Rdf1 {[%clk 0:00:06]}  Rd7 {[%clk 0:00:33]} 32. Bc3 {[%clk 0:00:05]}  b4 {[%clk 0:00:28]} 33. Rxf7 {[%clk 0:00:02]}  bxc3 {[%clk 0:00:16]} 34. Qh6 {[%clk 0:00:03]}  Rd2+ {[%clk 0:00:13]} 35. Ka1 {[%clk 0:00:03]}  Qxf7 {[%clk 0:00:04]} 36. Rxf7 {[%clk 0:00:04]}  Kxf7 {[%clk 0:00:05]} 37. e6+ {[%clk 0:00:04]}  Kxe6 {[%clk 0:00:05]} 38. Qxg6+ {[%clk 0:00:04]}  Ke5 {[%clk 0:00:06]} 39. Qg5+ {[%clk 0:00:03]}  Kd4 {[%clk 0:00:05]} 40. Qxh5 {[%clk 0:00:02]}  Rf8 {[%clk 0:00:06]} 0-1


[Site "https://www.chess.com"]

[Event "Titled Tuesday Blitz April 25 Early 2023"]
[White "Nikologorskiy, Konstantin"]
[Black "Tari, Aryan"]
[WhiteFideId "24111708"]
[BlackFideId "1510045"]
[WhiteElo "2293"]
[BlackElo "2561"]
[Result "0-1"]
[Round "06"]
[TimeControl "180+2"]
[Date "2023.04.25"]
[WhiteClock "0:00:02"]
[BlackClock "0:00:50"]

1. d4 {[%clk 0:02:56]}  Nf6 {[%clk 0:02:54]} 2. c4 {[%clk 0:02:56]}  e6 {[%clk 0:02:55]} 3. Nf3 {[%clk 0:02:56]}  d5 {[%clk 0:02:41]} 4. g3 {[%clk 0:02:56]}  h6 {[%clk 0:02:35]} 5. Bg2 {[%clk 0:02:56]}  Bd6 {[%clk 0:02:36]} 6. O-O {[%clk 0:02:56]}  O-O {[%clk 0:02:33]} 7. Nc3 {[%clk 0:02:52]}  Nc6 {[%clk 0:02:07]} 8. b3 {[%clk 0:02:46]}  dxc4 {[%clk 0:02:06]} 9. bxc4 {[%clk 0:02:45]}  e5 {[%clk 0:02:07]} 10. d5 {[%clk 0:02:28]}  Na5 {[%clk 0:02:05]} 11. Nd2 {[%clk 0:02:20]}  b6 {[%clk 0:01:57]} 12. Bb2 {[%clk 0:02:10]}  Ba6 {[%clk 0:01:52]} 13. Nb5 {[%clk 0:01:53]}  Re8 {[%clk 0:01:31]} 14. a4 {[%clk 0:01:50]}  Bb4 {[%clk 0:01:20]} 15. Rc1 {[%clk 0:01:35]}  Bxd2 {[%clk 0:01:20]} 16. Qxd2 {[%clk 0:01:36]}  Nb3 {[%clk 0:01:20]} 17. Qc2 {[%clk 0:01:17]}  Nxc1 {[%clk 0:01:19]} 18. Rxc1 {[%clk 0:01:13]}  Qd7 {[%clk 0:01:14]} 19. h4 {[%clk 0:00:55]}  Bb7 {[%clk 0:00:57]} 20. Nc3 {[%clk 0:00:47]}  c6 {[%clk 0:00:56]} 21. Rd1 {[%clk 0:00:07]}  cxd5 {[%clk 0:00:56]} 22. Nxd5 {[%clk 0:00:05]}  Nxd5 {[%clk 0:00:54]} 23. Bxd5 {[%clk 0:00:06]}  Bxd5 {[%clk 0:00:52]} 24. Rxd5 {[%clk 0:00:07]}  Qc7 {[%clk 0:00:52]} 25. Qe4 {[%clk 0:00:06]}  Rac8 {[%clk 0:00:51]} 26. Bxe5 {[%clk 0:00:05]}  Qxc4 {[%clk 0:00:50]} 27. Rd4 {[%clk 0:00:05]}  Qe6 {[%clk 0:00:50]} 28. f4 {[%clk 0:00:02]}  f6 {[%clk 0:00:50]} 29. Rd6 {[%clk 0:00:02]}  Qxd6 {[%clk 0:00:50]} 0-1


[Site "https://www.chess.com"]

[Event "Titled Tuesday Blitz April 25 Early 2023"]
[White "Kosakowski, Jakub"]
[Black "Toropov, Pavel"]
[WhiteFideId "1185080"]
[BlackFideId "24129178"]
[WhiteElo "2488"]
[BlackElo "2182"]
[Result "1-0"]
[Round "06"]
[TimeControl "180+2"]
[Date "2023.04.25"]
[WhiteClock "0:00:53"]
[BlackClock "0:00:09"]

1. d4 {[%clk 0:03:00]}  d5 {[%clk 0:02:57]} 2. Nf3 {[%clk 0:03:00]}  Nf6 {[%clk 0:02:55]} 3. Bf4 {[%clk 0:03:00]}  c6 {[%clk 0:02:50]} 4. Nbd2 {[%clk 0:02:56]}  Bf5 {[%clk 0:02:39]} 5. e3 {[%clk 0:02:53]}  e6 {[%clk 0:02:39]} 6. h3 {[%clk 0:02:50]}  Bd6 {[%clk 0:02:38]} 7. Bxd6 {[%clk 0:02:50]}  Qxd6 {[%clk 0:02:38]} 8. Nh4 {[%clk 0:02:51]}  Be4 {[%clk 0:02:37]} 9. c3 {[%clk 0:02:48]}  Nbd7 {[%clk 0:02:32]} 10. Be2 {[%clk 0:02:38]}  Rc8 {[%clk 0:02:23]} 11. O-O {[%clk 0:02:34]}  g5 {[%clk 0:02:19]} 12. Nhf3 {[%clk 0:02:33]}  g4 {[%clk 0:02:19]} 13. Ng5 {[%clk 0:02:03]}  Bxg2 {[%clk 0:01:22]} 14. Kxg2 {[%clk 0:01:56]}  Rg8 {[%clk 0:01:22]} 15. hxg4 {[%clk 0:01:40]}  Rxg5 {[%clk 0:01:22]} 16. f4 {[%clk 0:01:40]}  Rg7 {[%clk 0:01:17]} 17. Kf2 {[%clk 0:01:38]}  Ke7 {[%clk 0:00:48]} 18. g5 {[%clk 0:01:33]}  Ne4+ {[%clk 0:00:18]} 19. Nxe4 {[%clk 0:01:33]}  dxe4 {[%clk 0:00:19]} 20. Qc2 {[%clk 0:01:25]}  f6 {[%clk 0:00:19]} 21. Qxe4 {[%clk 0:01:16]}  fxg5 {[%clk 0:00:19]} 22. Rh1 {[%clk 0:01:16]}  Nf6 {[%clk 0:00:17]} 23. Qe5 {[%clk 0:01:16]}  gxf4 {[%clk 0:00:15]} 24. exf4 {[%clk 0:01:16]}  Rf8 {[%clk 0:00:15]} 25. Bf3 {[%clk 0:01:03]}  Ng4+ {[%clk 0:00:14]} 26. Bxg4 {[%clk 0:01:01]}  Rxf4+ {[%clk 0:00:14]} 27. Bf3 {[%clk 0:00:58]}  Qxe5 {[%clk 0:00:08]} 28. dxe5 {[%clk 0:00:59]}  Rgf7 {[%clk 0:00:08]} 29. Rh3 {[%clk 0:00:59]}  R7f5 {[%clk 0:00:08]} 30. Rxh7+ {[%clk 0:00:55]}  Kd8 {[%clk 0:00:09]} 31. Rd1+ {[%clk 0:00:53]} 1-0


[Site "https://www.chess.com"]